Cogmind - Beta 10.2 @@@ ROGUE MODE // 2020.11.04 @ 15:44:40 // Halloween2020/ForbiddenLore Player: Komen Result: Destroyed by G-34 Mercenary with Small Laser Performance ------------- Evolutions (1) 500 Regions Visited (5) 1000 Robots Destroyed (23) 115 Value Destroyed (903) 903 Prototype IDs (1) 20 Alien Tech Used (0) 0 Bonus (447) 447 TOTAL SCORE: 2985 Bonus ------- Pacifist 200 High Alert Combat Kills 47 Entered Garrisons 200 Cogmind --------- Core Integrity 0/400 Matter 300/300 Energy 212/250 System Corruption 2% Temperature Cool (327) Movement Flying (34) Location -9/Garrison Parts ------- > --- POWER (1) -------- Ion Engine > --- PROPULSION (4) --- Flight Unit Flight Unit Flight Unit > --- UTILITY (2) ------ (None) > --- WEAPON (2) ------- Particle Cannon > --- INVENTORY (4) ---- Relay Coupler [NC] (24) Relay Coupler [Swarmer] (43) Relay Coupler [Grunt] (28) Relay Coupler [Sentry] (21) Peak State ------------ > --- POWER ------------ Ion Engine > --- PROPULSION ------- Flight Unit Flight Unit Flight Unit Flight Unit > --- UTILITY ---------- Heat Sink > --- WEAPON ----------- Particle Cannon Particle Cannon > --- INVENTORY -------- Relay Coupler [Swarmer] Relay Coupler [Grunt] Relay Coupler [Sentry] [Rating: 11] Favorites ----------- Power Ion Engine Engine Ion Engine Propulsion Flight Unit Treads Light Treads Flight Unit Flight Unit Utility Heat Sink Device Heat Sink Protection Heavy Armor Plating Weapon Particle Cannon Energy Cannon Particle Cannon Ballistic Gun Light Assault Rifle Special Weapon Mining Laser Build | -11 -10 -10 -9 -9 -9 ------- Run | Scr Mat Min Mat Sto Gar Slots Evolved 2 | . . . 2 . . Power . | . . . . . . Propulsion 2 | . . . 2 . . Utility . | . . . . . . Weapon . | . . . . . . Parts Attached 22 | . . 1 3 13 5 Power 4 | . . . . 3 1 Engine 4 | . . . . 3 1 Core . | . . . . . . Reactor . | . . . . . . Propulsion 8 | . . 1 . 4 3 Treads 1 | . . . . 1 . Leg . | . . . . . . Wheel . | . . . . . . Hover . | . . . . . . Flight 7 | . . 1 . 3 3 Utility 2 | . . . 1 1 . Device 1 | . . . . 1 . Storage . | . . . . . . Processor . | . . . . . . Hackware . | . . . . . . Protection 1 | . . . 1 . . Artifact . | . . . . . . Weapon 8 | . . . 2 5 1 Energy Gun . | . . . . . . Energy Cannon 5 | . . . . 4 1 Ballistic Gun 1 | . . . . 1 . Ballistic Cannon . | . . . . . . Launcher . | . . . . . . Special Weapon 2 | . . . 2 . . Impact Weapon . | . . . . . . Slashing Weapon . | . . . . . . Piercing Weapon . | . . . . . . Special Melee Weapon . | . . . . . . Unidentified Prototypes 1 | . . . . 1 . Parts Lost 10 | . . . 1 4 5 Power . | . . . . . . Propulsion 4 | . . . . 1 3 Utility 1 | . . . . . 1 Weapon 5 | . . . 1 3 1 Highest Loss Streak 2 | . . . 1 2 2 Average Slot Usage (%) 49 | . . 7 23 28 80 Engine 7 | . . . . 9 10 Flight 19 | . . 7 7 4 37 Device 5 | . . . . 1 10 Energy Cannon 11 | . . . . 7 20 Special Weapon 3 | . . . 16 2 . Naked Turns 84 | . 66 10 . 8 . Heaviest Build 15 | . . . 2 15 14 Greatest Support 20 | 3 3 3 3 20 16 Greatest Overweight (x) 4 | . . . . 2 4 Average Overweight (x) . | . . . . . . Largest Inventory Capacity 4 | 4 4 4 4 4 4 Average Capacity 4 | 4 4 4 4 4 4 Most Carried 4 | . 2 2 3 4 4 Average Carried 2 | . . 2 1 2 3 Final Capacity 4 | 4 4 4 4 4 4 Final Carried 4 | . 2 2 1 3 4 Class Distribution -------------------- 52% | Mutant 30% | Scavenger-Mutant 17% | Scavenger-Sprinter Dominant Class ---------------- Mutant | -10/Materials Mutant | -10/Mines Mutant | -9/Materials Mutant | -9/Storage Scavenger-Mutant | -9/Garrison Resources | -11 -10 -10 -9 -9 -9 ----------- Run | Scr Mat Min Mat Sto Gar Matter Collected 403 | 187 . 18 15 133 50 Remotely . | . . . . . . Salvage Created 628 | . . . . 240 388 Parts 39 | . . . . 18 21 Haulers Intercepted . | . . . . . . Recyclers Shooed . | . . . . . . Parts Field Recycled . | . . . . . . Retrieved Matter . | . . . . . . Parts Self-Destructed . | . . . . . . Prevented . | . . . . . . Kills | -11 -10 -10 -9 -9 -9 ------- Run | Scr Mat Min Mat Sto Gar Combat Hostiles Destroyed 23 | . . . . 9 14 Guns 4 | . . . . 1 3 Cannons 19 | . . . . 8 11 Classes Destroyed 4 | . . . . 2 2 Swarmer 14 | . . . . 6 8 Grunt 4 | . . . . . 4 Duelist 1 | . . . . . 1 Sentry 4 | . . . . 3 1 Best Kill Streak 11 | . . . . 6 11 Combat Bots Only 11 | . . . . 6 11 Max Kills in Single Turn 2 | . . . . 1 2 Gunslinging . | . . . . . . Exploded . | . . . . . . Melee . | . . . . . . Uniques/NPCs Destroyed . | . . . . . . Combat | -11 -10 -10 -9 -9 -9 -------- Run | Scr Mat Min Mat Sto Gar Damage Taken 1264 | . . 81 99 629 455 Core 478 | . . 75 40 225 138 Absorbed by Shields 76 | . . . . . 76 Core Remaining (%) 85 | 100 . 70 . . . Volleys Fired 61 | . . . 4 24 33 Largest 2 | . . . 2 2 2 Hottest 200 | . . . 200 136 136 Shots Fired 114 | . . . 8 44 62 Gun 14 | . . . . 8 6 Cannon 92 | . . . . 36 56 Launcher . | . . . . . . Special 8 | . . . 8 . . Kinetic 14 | . . . . 8 6 Thermal 100 | . . . 8 36 56 Explosive . | . . . . . . Electromagnetic . | . . . . . . Robot Hit Streak 12 | . . . . 9 12 Robot Miss Streak 5 | . . . . 5 1 Penetration Max . | . . . . . . Secondary Targets . | . . . . . . Shots Hit Robots 60 | . . . . 27 33 Core Hits 26 | . . . . 10 16 Critical Hits . | . . . . . . Critical Kills . | . . . . . . Critical Parts Destroyed . | . . . . . . Melee Attacks . | . . . . . . Impact . | . . . . . . Slashing . | . . . . . . Piercing . | . . . . . . Sneak Attacks . | . . . . . . Combat Hostiles . | . . . . . . Follow-up Attacks . | . . . . . . Damage Inflicted 1176 | . . . . 521 655 Guns 90 | . . . . 50 40 Cannons 1086 | . . . . 471 615 Explosions . | . . . . . . Melee . | . . . . . . Ramming . | . . . . . . Kinetic 90 | . . . . 50 40 Thermal 1086 | . . . . 471 615 Explosive . | . . . . . . Electromagnetic . | . . . . . . Impact . | . . . . . . Slashing . | . . . . . . Piercing . | . . . . . . Highest Corruption 2 | . . . . 2 2 Average Corruption 2 | . . . . 2 2 Corruption Purged . | . . . . . . Effects 13 | . . . . 4 9 Message Errors 3 | . . . . . 3 Heat Flow Errors 2 | . . . . . 2 Data Loss (minor) 2 | . . . . 1 1 Targeting Errors 6 | . . . . 3 3 Overload Shots . | . . . . . . Overflow Damage 4 | . . . . 1 3 Projectiles 4 | . . . . 1 3 Explosions . | . . . . . . Melee . | . . . . . . Knockbacks . | . . . . . . Impact . | . . . . . . Kinetic . | . . . . . . Secondary . | . . . . . . Self-Inflicted Damage . | . . . . . . Shots . | . . . . . . Rammed . | . . . . . . Targets Rammed . | . . . . . . Kicked . | . . . . . . Crushed . | . . . . . . Highest Temperature 675 | . . . 18 675 321 Average Temperature 163 | . . . 13 276 82 Received Heat Transfer 297 | . . . 39 144 114 Effects 14 | . . . . 14 . Shutdowns 2 | . . . . 2 . Energy Bleed 2 | . . . . 2 . Interference 1 | . . . . 1 . Short Circuit 2 | . . . . 2 . Damage (minor) 1 | . . . . 1 . Damage (major) 5 | . . . . 5 . Damage (core) 1 | . . . . 1 . Siege Activations . | . . . . . . Robots Corrupted . | . . . . . . Combat Hostiles . | . . . . . . Parts Fried . | . . . . . . Impact Corruptions . | . . . . . . Robots Melted . | . . . . . . Combat Hostiles . | . . . . . . Parts Melted 3 | . . . . 3 . Heat Transferred 1961 | . . . . 851 1110 Parts Sabotaged . | . . . . . . Parts Stolen . | . . . . . . Parts Stripped . | . . . . . . Power Chain Reactions . | . . . . . . Missiles Intercepted . | . . . . . . Alert | -11 -10 -10 -9 -9 -9 ------- Run | Scr Mat Min Mat Sto Gar Peak Influence 628 | . 60 23 13 301 628 Initial 198 | . . 23 8 5 198 Average 257 | . 15 23 8 101 496 Maximum Alert Level 2 | . . . . 1 2 Low Security (%) 47 | 100 100 100 100 75 . Level 1 11 | . . . . 24 8 Level 2 40 | . . . . . 90 Level 3 . | . . . . . . Level 4 . | . . . . . . Level 5 . | . . . . . . High Security . | . . . . . . Max Security . | . . . . . . Squads Dispatched 2 | . . . 1 1 . Investigation 1 | . . . 1 . . Extermination . | . . . . . . Reinforcement . | . . . . . . Assault . | . . . . . . Garrison 1 | . . . . 1 . Intercept . | . . . . . . Construction Impeded . | . . . . . . Haulers Reinforced . | . . . . . . Stealth | -11 -10 -10 -9 -9 -9 --------- Run | Scr Mat Min Mat Sto Gar Distress Signals . | . . . . . . Communications Jammed . | . . . . . . Distress Signals . | . . . . . . Times Spotted 38 | . 2 3 4 12 17 Peak Tracking Total 9 | . 2 3 4 5 9 Tactical Retreats 3 | . . . . 2 1 Traps | -11 -10 -10 -9 -9 -9 ------- Run | Scr Mat Min Mat Sto Gar Traps Triggered 6 | . . . . 2 4 Indirectly . | . . . . . . Trap Hack Attempts . | . . . . . . Triggered . | . . . . . . Disarmed . | . . . . . . Reprogrammed . | . . . . . . Reused . | . . . . . . Traps Extracted . | . . . . . . Installed . | . . . . . . Triggered . | . . . . . . Machines | -11 -10 -10 -9 -9 -9 ---------- Run | Scr Mat Min Mat Sto Gar Machines Disabled 2 | . . . . . 2 Max in Single Turn 1 | . . . . . 1 Garrison Relay 2 | . . . . . 2 Machines Sabotaged . | . . . . . . Garrisons Compromised . | . . . . . . Overloaded Fab Kills . | . . . . . . Fab Network Shutdowns . | . . . . . . Hacking | -11 -10 -10 -9 -9 -9 --------- Run | Scr Mat Min Mat Sto Gar Machines Accessed 7 | . 1 . 1 5 . Terminals 5 | . 1 . . 4 . Fabricators . | . . . . . . Repair Stations 1 | . . . 1 . . Recycling Units . | . . . . . . Scanalyzers . | . . . . . . Garrison Access 1 | . . . . 1 . Total Hacks 14 | . 3 . 4 7 . Successful 8 | . 1 . 2 5 . Failed 6 | . 2 . 2 2 . Catastrophic 2 | . . . . 2 . Database Lockouts . | . . . . . . Manual 7 | . 3 . 2 2 . Terminals 9 | . 3 . . 6 . Fabricators . | . . . . . . Repair Stations 4 | . . . 4 . . Recycling Units . | . . . . . . Scanalyzers . | . . . . . . Garrison Access 1 | . . . . 1 . Terminal Hacks 5 | . 1 . . 4 . Record 2 | . . . . 2 . Open Door 1 | . . . . 1 . Branch Access Points 1 | . 1 . . . . Zone Layout 1 | . . . . 1 . Fabricator Hacks . | . . . . . . Repair Station Hacks 2 | . . . 2 . . Scan Component 1 | . . . 1 . . Repair 1 | . . . 1 . . Recycling Unit Hacks . | . . . . . . Scanalyzer . | . . . . . . Garrison Access Hacks 1 | . . . . 1 . Unlock Access 1 | . . . . 1 . Unauthorized Hacks . | . . . . . . Terminals . | . . . . . . Fabricators . | . . . . . . Repair Stations . | . . . . . . Recycling Units . | . . . . . . Scanalyzers . | . . . . . . Garrison Access . | . . . . . . Data Cores Recovered . | . . . . . . Used . | . . . . . . Hacking Detections 4 | . 1 . 1 2 . Full Trace Events 1 | . . . 1 . . Feedback Events . | . . . . . . Feedback Blocked . | . . . . . . Robot Schematics Acquired . | . . . . . . Robots Built . | . . . . . . Matter . | . . . . . . Time . | . . . . . . Total Robot Build Rating . | . . . . . . Part Schematics Acquired . | . . . . . . Parts Built . | . . . . . . Matter . | . . . . . . Time . | . . . . . . Total Part Build Rating . | . . . . . . Parts Repaired 1 | . . . 1 . . Time 26 | . . . 26 . . Parts Recycled . | . . . . . . Recycled Matter . | . . . . . . Retrieved Matter . | . . . . . . Retrieved Components . | . . . . . . Parts Scanalyzed . | . . . . . . Part Schematics Acquired . | . . . . . . Parts Damaged . | . . . . . . Bothacking | -11 -10 -10 -9 -9 -9 ------------ Run | Scr Mat Min Mat Sto Gar Used RIF Installer . | . . . . . . Robots Hacked . | . . . . . . Non-combat . | . . . . . . Combat . | . . . . . . Robot Hacks Applied . | . . . . . . Relay Couplers Released 7 | . . . . . 7 Machine Destruction 7 | . . . . . 7 Robots Rewired . | . . . . . . Allies Hacked . | . . . . . . Hacks Repelled . | . . . . . . Allies | -11 -10 -10 -9 -9 -9 -------- Run | Scr Mat Min Mat Sto Gar Total Allies . | . . . . . . Largest Group . | . . . . . . Highest-Rated Group . | . . . . . . Highest-Rated Ally . | . . . . . . Total Orders . | . . . . . . Ally Attacks . | . . . . . . Total Damage . | . . . . . . Kills . | . . . . . . Allies Corrupted . | . . . . . . Allies Melted . | . . . . . . Intel | -11 -10 -10 -9 -9 -9 ------- Run | Scr Mat Min Mat Sto Gar Robot Analysis Total . | . . . . . . Derelict Logs Recovered . | . . . . . . Drone Launches . | . . . . . . Drone Recoveries . | . . . . . . Exploration | -11 -10 -10 -9 -9 -9 ------------- Run | Scr Mat Min Mat Sto Gar Turns Passed 954 | 14 66 27 121 297 429 Spaces Moved 751 | 28 90 51 67 211 304 Core 402 | 28 90 51 67 164 2 Treads 12 | . . . . 12 . Legs . | . . . . . . Wheels . | . . . . . . Hover . | . . . . . . Flight 337 | . . . . 35 302 Fastest Speed 31 | 50 50 50 50 34 31 Average Speed 66 | 50 50 50 50 98 57 Slowest Speed 250 | 50 50 50 50 160 250 Overloaded Moves . | . . . . . . Propulsion Burnouts . | . . . . . . Robots Hopped . | . . . . . . Cave-ins Triggered . | . . . . . . Exploration Rate (%) 21 | 4 26 16 8 30 45 Regions Visited 5 Branch Regions 2 Pre-discovered Areas . | . . . . . . Known Exits Taken 2 | . 1 . . 1 . Unknown Exits Taken 3 | 1 . 1 1 . . Scrap Searched 1 | . . 1 . . . Spaces Dug 6 | . . . 6 . . Terrain Destroyed 6 | . . . 6 . . Melee . | . . . . . . Projectile 6 | . . . 6 . . AOE . | . . . . . . Terrain Rammed . | . . . . . . Walls Destroyed . | . . . . . . Machines Disabled . | . . . . . . Actions | -11 -10 -10 -9 -9 -9 --------- Run | Scr Mat Min Mat Sto Gar Total 1066 | 27 110 51 129 252 497 Wait 160 | . 19 . 54 . 87 Move 746 | 27 89 50 66 210 304 Hop . | . . . . . . Pick Up 10 | . 2 . 1 2 5 Fast Attach 18 | . . 1 1 12 4 Attach 2 | . . . 2 . . Detach 1 | . . . . 1 . Swap 2 | . . . . 1 1 Drop 8 | . . . 1 2 5 Fire 61 | . . . 4 24 33 Melee . | . . . . . . Ram . | . . . . . . Kick . | . . . . . . Crush . | . . . . . . Escape Stasis 58 | . . . . . 58 Rewire . | . . . . . . Trap . | . . . . . . Miscellaneous . | . . . . . . Route ------- -11/Scrapyard -10/Materials (discovered 2 exits: *Min x2) -10/Mines -9/Materials -9/Storage -9/Garrison History --------- Turn | Location | Event 2 | -11/Scrapyard | Met Revision 17 6 | -11/Scrapyard | Discovered new exit (range 15) 15 | -11/Scrapyard | Entered Materials 19 | -10/Materials | Identified exit to Mines 81 | -10/Materials | Entered Mines 104 | -10/Mines | Discovered new exit (range 8) 108 | -10/Mines | Entered Materials 108 | -9/Materials | Evolved 2 slots: Propulsion x2 206 | -9/Materials | Repaired Flight Unit 220 | -9/Materials | Discovered new exit (range 4) 229 | -9/Materials | Entered Storage 318 | -9/Storage | Build established: Mutant 449 | -9/Storage | Garrison activated, responded to threat 469 | -9/Storage | Core integrity fell below 50% 526 | -9/Storage | Identified exit to Garrison 526 | -9/Storage | Entered Garrison 590 | -9/Garrison | Destroyed 11 combat bots 630 | -9/Garrison | Triggered checkpoint 694 | -9/Garrison | Garrison Relay disabled 812 | -9/Garrison | Triggered checkpoint 816 | -9/Garrison | Core integrity fell below 20% 850 | -9/Garrison | Garrison Relay disabled 920 | -9/Garrison | Triggered checkpoint 936 | -9/Garrison | Triggered checkpoint 938 | -9/Garrison | Triggered checkpoint 955 | -9/Garrison | Destroyed by G-34 Mercenary with Small Laser Last Messages --------------- Field strength at 20. Field strength at 15. Field strength at 10. Field strength at 5. Stasis field depleted. System corrupted: Particle Cannon targeting data glitched. Flight Unit destroyed. G-34 Mercenary destroyed. Garrison Relay disabled. Relay Coupler [Sentry] tumbles out of relay unit. Relay Coupler [Swarmer] tumbles out of relay unit. Relay Coupler [Hunter] tumbles out of relay unit. System corrupted: Particle Cannon targeting data glitched. System corrupted: Heat flow error (+155). Beams of light sweep through the air. An alarm sounds. System corrupted: Component data lost. Beams of light sweep through the air. An alarm sounds. L-31 Rogue destroyed. Heat Sink destroyed. Particle Cannon destroyed. Map ----- +----------------------------------------------------+ | ????????????????????????????????????????# #????# | | ????????????????????????????????????????# #????# | | ????????????????????????????????????????# #????# | | ????????????????????????????????????????# #????# | | ????????????????????????????????????????# #??### | | ????????????????????????????????????????# #??# | | ????????????????????????????????????????# #??# | | ????????????????????????????????????????# #??# | | ????????????????????????????????????????# #??### | | ???????????????????????????????????###### ###### | | ???????????????????????????????????# * | | ???????????????????????????????????# #### ###### | | ???????????????????????????????????# #??# #????? | | ???????????????????????????????????# #??# #????? | | ????????????????????######?????????# #??# #????? | | ????????????????????# #?????????# #??# #????? | | ???????????????###### ########### #### #????? | | ?????# ######## #????? | | ?????# #????? | | ?????# #????? | | ?????########### ## ## ###############????? | | ???????????????# ## ## ###????????????????? | | ???????????????" #????????????????? | | ???????????????" #????????????????? | | ???????????????" / #????????????????? | | ???????????????" @l % #????????????????? | | ???????????????# ## gg## ###????????????????? | | ?????########### ## ## #??????????????????? | | ?????# ^ ?????????????????? | | ?????# ???????????????? | | ?????# ######## #####??????????????? | | ?????# #??????###### ## ##??????????????????? | | ?????# #???????????# ## #???????????????????? | | ?????# #???????????######? #???????????????????? | | ######%[#????????????????????#???????????????????? | | = %%%#????????????????????????????????????????? | | * %#????????????????????????????????????????? | | #####%###????????????????????????????????????????? | | #???#%#??????????????????????????????????????????? | | #???# #??????????????????????????????????????????? | | ????# #??????????????????????????????????????????? | | ????#^######?????????????????????????????????????? | | ????#[" #?????????????????????????????????????? | | ????#=#### #?????????????????????????????????????? | | ????#[#??# #?????????????????????????????????????? | | ????# #??# #?????????????????????????????????????? | | ????# #??# #?????????????????????????????????????? | | ##### #### #?????????????????????????????????????? | | " # #???#######???????????????????????????? | | ##### # ## #???#""[""#???????????????????????????? | +----------------------------------------------------+ Best States ------------- Heat Dissipation 38 Energy Generation 14 Energy Capacity 280 Matter Stores 300 Matter Capacity 300 Sight Range 16 Terrain Scan Density 10 Evasion (%) 63 Recoil Reduction 1 Item Schematics ----------------- None Robot Schematics ------------------ None Fabricated ------------ Nothing Alien Tech Used ----------------- None Achievements -------------- None Challenges ------------ None Game ------ Seed MiniDerelictMantle Manual? 0 Play Time 00:29:04 Cumulative 24.5 hours Start 2020.11.04 @ 15:17:35 End 2020.11.04 @ 15:44:40 Sessions 1 Manual Loads 0 Difficulty Rogue Special Mode Halloween2020/ForbiddenLore Game No. 46 Rogue 46 Adventurer 0 Explorer 0 Win Type - Total 0 Types 0/0/0/0/0/0/0/0/0 Lore% 19 Gallery% 27 Achievement% 21 Wizard Run 0 Options --------- ASCII 0 Keyboard 0 Movement Mouse Keybinds 0 Fullscreen 2 Font 24/Smallcaps Map View 76x50 Tactical HUD 0 Map Filters NONE Filters NONE Steam 1 RUN: f01f06dc-ba37-46a1-bc82-0534b8cbdb3d